bitfinex/quotes_SOLUSD_20241107
["timestamp","ask_amount","ask_price","bid_price","bid_amount"]
[1730944715816,28.12733434,189.53,189.47,28.12733434]
[1730944716127,28.12733434,189.52,189.45,28.12733434]
[1730944716424,28.12733434,189.51,189.45,28.12733434]
[1730944717130,23.902374,189.54,189.38,0.1]
[1730944717131,28.12733434,189.52,189.46,28.12733434]
[1730944717417,17.5753204,189.53,189.47,17.5753204]
[1730944717620,17.5753204,189.52,189.46,17.5753204]
[1730944717823,5.48498546,189.55,189.51,17.5753204]
[1730944718120,6.5048,189.62,189.54,17.5753204]
[1730944718121,29.5645631,189.62,189.54,17.5753204]
[1730944718339,29.5645631,189.62,189.56,17.5753204]
[1730944718625,33.2536204,189.61,189.55,17.5753204]
[1730944718830,17.5753204,189.58,189.51,17.5753204]
[1730944719324,23.776884,189.58,189.53,28.10266776]
[1730944720106,0.12549,189.59,189.53,28.10266776]
[1730944720302,0.12549,189.59,189.47,15.4827]
[1730944720303,0.12549,189.59,189.54,28.10266776]
[1730944720509,28.22815776,189.59,189.53,28.10266776]
[1730944720701,28.22815776,189.6,189.53,28.10266776]
[1730944721115,27.72815776,189.6,189.53,28.10266776]
[1730944721704,27.72815776,189.6,189.54,28.10266776]
[1730944721905,27.72815776,189.6,189.53,28.10266776]
[1730944723023,28.22815776,189.58,189.51,28.10266776]
[1730944723605,28.22815776,189.58,189.52,28.10266776]
[1730944724109,28.10266776,189.56,189.49,28.10266776]
[1730944725526,28.10266776,189.56,189.5,28.10266776]
[1730944725920,28.22815776,189.58,189.52,28.10266776]
[1730944726405,28.10266776,189.57,189.5,28.10266776]
[1730944726605,28.10266776,189.56,189.5,28.10266776]
[1730944727230,28.22815776,189.58,189.52,28.10266776]
[1730944728025,0.12549,189.58,189.53,28.10266776]
[1730944728424,202.18096776,189.61,189.55,28.10266776]
[1730944728744,163.88677929,189.61,189.56,28.10266776]
[1730944729120,5.48677929,189.61,189.56,28.10266776]
[1730944730712,5.48677929,189.61,189.49,6.2065]
[1730944730917,174.9432,189.65,189.59,28.10266776]
[1730944730918,44.64586776,189.65,189.59,28.10266776]
[1730944731128,28.10266776,189.66,189.6,28.10266776]
[1730944731506,5.47942913,189.66,189.6,28.10266776]
[1730944731702,0.12549,189.65,189.6,28.10266776]
[1730944732009,5.47942913,189.66,189.6,28.10266776]
[1730944732329,33.58209689,189.66,189.59,28.10266776]
[1730944732524,28.10266776,189.62,189.56,28.10266776]
[1730944732702,28.10266776,189.6,189.54,28.10266776]
[1730944732907,28.10266776,189.6,189.53,28.10266776]
[1730944733714,28.10266776,189.59,189.53,28.10266776]
[1730944734230,0.12549,189.57,189.52,28.10266776]
[1730944734406,28.10266776,189.54,189.48,28.10266776]
[1730944734822,28.10266776,189.53,189.47,28.10266776]
[1730944735030,28.10266776,189.51,189.44,28.10266776]
[1730944735633,28.10266776,189.49,189.43,28.10266776]
[1730944736329,28.10266776,189.46,189.4,28.10266776]
[1730944736946,28.10266776,189.44,189.38,28.10266776]
[1730944737117,28.10266776,189.42,189.36,28.10266776]
[1730944737629,28.10266776,189.41,189.35,28.10266776]
[1730944738427,28.22815776,189.42,189.36,28.10266776]
[1730944738638,0.12549,189.42,189.36,28.10266776]
[1730944739221,0.12549,189.42,189.37,28.10266776]
[1730944740639,0.12549,189.42,189.36,28.10266776]
[1730944741743,28.10266776,189.37,189.31,28.10266776]
[1730944742045,28.22815776,189.42,189.27,15.4688]
[1730944742046,28.10266776,189.36,189.3,28.10266776]
[1730944742432,28.10266776,189.37,189.31,28.10266776]
[1730944742631,28.10266776,189.36,189.3,28.10266776]
[1730944742826,28.10266776,189.37,189.3,28.10266776]
[1730944743922,0.12549,189.4,189.3,28.10266776]
[1730944743923,28.10266776,189.36,189.3,28.10266776]
[1730944745157,28.10266776,189.35,189.28,28.10266776]
[1730944745527,28.10266776,189.35,189.24,6.5568]
[1730944745528,28.10266776,189.33,189.27,28.10266776]
[1730944745843,28.10266776,189.34,189.28,28.10266776]
[1730944746445,0.12549,189.37,189.3,28.10266776]
[1730944746446,28.10266776,189.36,189.3,28.10266776]
[1730944749936,28.22815776,189.37,189.31,28.10266776]
[1730944750135,55.06838182,189.38,189.32,28.10266776]
[1730944751352,44.56868558,189.38,189.32,17.60297152]
[1730944751844,5.49181406,189.38,189.33,17.60297152]
[1730944752240,17.60297152,189.39,189.25,23.776884]
[1730944752241,17.60297152,189.41,189.36,17.60297152]
[1730944752450,0.12549,189.41,189.36,17.60297152]
[1730944753449,23.902374,189.41,189.36,17.60297152]
[1730944753949,41.50534552,189.41,189.35,17.60297152]
[1730944754139,5.46172965,189.42,189.37,17.60297152]
[1730944754540,23.06470117,189.42,189.36,17.60297152]
[1730944755448,23.06470117,189.42,189.37,17.60297152]
[1730944755654,17.60297152,189.39,189.33,17.60297152]
[1730944756247,17.60297152,189.37,189.31,17.60297152]
[1730944756549,17.60297152,189.38,189.32,17.60297152]
[1730944756749,23.902374,189.41,189.33,17.60297152]
[1730944756958,17.60297152,189.39,189.33,17.60297152]
[1730944758148,23.902374,189.41,189.36,17.60297152]
[1730944758367,5.46172965,189.42,189.37,17.60297152]
[1730944759354,15.8546,189.46,189.31,17.60297152]
[1730944759355,17.60297152,189.44,189.38,17.60297152]
[1730944759935,38.90703098,189.46,189.4,17.60297152]
[1730944762333,5.44945946,189.46,189.43,17.60297152]
[1730944763056,5.44945946,189.46,189.42,17.60297152]
[1730944764153,5.44945946,189.46,189.43,17.60297152]
[1730944764455,5.44945946,189.46,189.42,17.60297152]
[1730944765155,5.44945946,189.46,189.41,17.60297152]
[1730944765559,23.92617152,189.48,189.42,17.60297152]
[1730944766273,17.60297152,189.47,189.41,17.60297152]
[1730944766442,41.50534552,189.46,189.4,17.60297152]
[1730944766964,41.50534552,189.46,189.39,17.60297152]
[1730944767138,41.50534552,189.46,189.4,17.60297152]
[1730944770046,23.902374,189.44,189.38,17.60297152]
[1730944770441,41.50534552,189.44,189.38,17.60297152]
[1730944770641,41.50534552,189.44,189.37,17.60297152]
[1730944770844,41.50534552,189.44,189.38,17.60297152]
[1730944771143,23.902374,189.44,189.39,17.60297152]
[1730944771355,0.12549,189.44,189.39,17.60297152]
[1730944771565,23.776884,189.45,189.4,17.60297152]
[1730944771860,23.776884,189.45,189.41,17.60297152]
[1730944772241,23.902374,189.46,189.41,17.60297152]
[1730944772440,41.50534552,189.46,189.4,17.60297152]
[1730944773662,23.902374,189.46,189.41,17.60297152]
[1730944773864,23.776884,189.47,189.41,17.60297152]
[1730944774048,0.12549,189.46,189.41,17.60297152]
[1730944774766,23.776884,189.47,189.43,17.60297152]
[1730944775869,6.3232,189.48,189.43,17.60297152]
[1730944776365,5.45331327,189.49,189.44,17.60297152]
[1730944777865,17.60297152,189.46,189.34,43.776884]
[1730944778171,17.60297152,189.46,189.4,17.60297152]
[1730944778360,15.277,189.51,189.45,17.60297152]
[1730944778557,23.776884,189.52,189.49,17.60297152]
[1730944778948,41.37985552,189.52,189.46,17.60297152]
[1730944779273,23.776884,189.52,189.46,17.60297152]
[1730944779972,41.37985552,189.52,189.46,17.60297152]
[1730944780578,23.776884,189.52,189.46,17.60297152]
[1730944780949,17.72846152,189.51,189.45,17.60297152]
[1730944783178,23.776884,189.52,189.46,17.60297152]
[1730944783343,5.44440521,189.53,189.51,17.60297152]
[1730944783971,170.23416615,189.58,189.52,17.60297152]
[1730944784151,0.12549,189.57,189.53,17.60297152]
[1730944784871,29.43713767,189.58,189.52,17.60297152]
[1730944785166,5.44506615,189.58,189.55,17.60297152]
[1730944785347,5.44506615,189.58,189.56,17.60297152]
[1730944785547,15.1553,189.65,189.57,17.60297152]
[1730944785764,15.1553,189.65,189.53,17.60297152]
[1730944785765,20.59523655,189.65,189.59,17.60297152]
[1730944785964,17.72846152,189.62,189.56,17.60297152]
[1730944786173,17.60297152,189.61,189.55,17.60297152]
[1730944788569,0.12549,189.62,189.57,17.60297152]
[1730944788872,41.50534552,189.62,189.56,17.60297152]
[1730944789362,17.72846152,189.58,189.52,17.60297152]
[1730944789561,0.12549,189.58,189.51,17.60297152]
[1730944789755,17.72846152,189.58,189.52,17.60297152]
[1730944789957,0.12549,189.58,189.53,17.60297152]
[1730944791151,23.776884,189.57,189.51,17.60297152]
[1730944791380,41.37985552,189.57,189.51,17.60297152]
[1730944791763,23.776884,189.57,189.51,17.60297152]
[1730944792980,23.776884,189.57,189.52,17.60297152]
[1730944793283,23.776884,189.57,189.51,17.60297152]
[1730944795084,17.60297152,189.58,189.51,17.60297152]
[1730944795284,178.99523655,189.65,189.57,17.60297152]
[1730944795464,178.99523655,189.65,189.48,16.608]
[1730944795465,0.12549,189.62,189.56,17.60297152]
[1730944795663,17.72846152,189.59,189.52,17.60297152]
[1730944795972,17.72846152,189.59,189.48,16.608]
[1730944795973,17.60297152,189.57,189.51,17.60297152]
[1730944796392,0.22549,189.63,189.51,17.60297152]
[1730944796683,17.60297152,189.55,189.49,17.60297152]
[1730944796993,41.50534552,189.54,189.47,17.60297152]
[1730944797300,17.60297152,189.53,189.47,17.60297152]
[1730944797464,17.60297152,189.51,189.43,15.9234]
[1730944797670,17.60297152,189.5,189.44,17.60297152]
[1730944797871,17.60297152,189.51,189.45,17.60297152]
[1730944798065,16.3099,189.56,189.38,15.9234]
[1730944798291,23.776884,189.58,189.53,17.60297152]
[1730944798590,23.776884,189.58,189.45,22.2183]
[1730944798814,17.60297152,189.6,189.53,17.60297152]
[1730944798973,17.60297152,189.6,189.54,17.60297152]
[1730944799178,33.91287152,189.61,189.54,17.60297152]
[1730944799489,23.902374,189.6,189.54,17.60297152]
[1730944799868,23.902374,189.6,189.55,17.60297152]
[1730944800090,16.3099,189.61,189.56,17.60297152]
[1730944800474,33.91287152,189.61,189.55,17.60297152]
[1730944800790,33.91287152,189.61,189.54,17.60297152]
[1730944800993,0.12549,189.6,189.54,17.60297152]
[1730944801170,23.902374,189.6,189.54,17.60297152]
[1730944801789,23.902374,189.6,189.55,17.60297152]
[1730944802096,23.776884,189.61,189.56,17.60297152]
[1730944802475,23.776884,189.61,189.55,17.60297152]
[1730944802984,23.776884,189.61,189.57,17.60297152]
[1730944803172,41.50534552,189.62,189.56,17.60297152]
[1730944803369,23.902374,189.56,189.45,22.2183]
[1730944803692,17.72846152,189.52,189.41,22.025]
[1730944803908,23.902374,189.53,189.44,17.60297152]
[1730944804075,23.902374,189.53,189.41,15.6805]
[1730944804397,17.60297152,189.5,189.44,17.60297152]
[1730944804768,23.776884,189.5,189.45,17.60297152]
[1730944805075,6.043,189.54,189.46,17.60297152]
[1730944805076,17.60297152,189.52,189.46,17.60297152]
[1730944805477,17.60297152,189.52,189.45,17.60297152]
[1730944805873,17.60297152,189.51,189.45,17.60297152]
[1730944806077,17.60297152,189.51,189.44,17.60297152]
[1730944806378,17.60297152,189.49,189.43,17.60297152]
[1730944806581,17.60297152,189.49,189.42,17.60297152]
[1730944807195,0.12549,189.5,189.44,17.60297152]
[1730944807374,41.50534552,189.5,189.44,17.60297152]
[1730944807691,16.2943,189.56,189.49,17.60297152]
[1730944807899,33.89727152,189.56,189.49,17.60297152]
[1730944808068,33.89727152,189.56,189.5,17.60297152]
[1730944808268,17.72846152,189.55,189.48,17.60297152]
[1730944808501,17.60297152,189.53,189.47,17.60297152]
[1730944808669,17.60297152,189.52,189.45,17.60297152]
[1730944808991,17.60297152,189.52,189.37,0.1]
[1730944808992,0.12549,189.52,189.47,17.60297152]
[1730944809197,23.902374,189.52,189.47,17.60297152]
[1730944810107,23.902374,189.52,189.46,17.60297152]
[1730944811172,23.902374,189.52,189.47,17.60297152]
[1730944811597,23.902374,189.52,189.46,17.60297152]
[1730944812301,23.776884,189.52,189.48,17.60297152]
[1730944812606,7.482266,189.59,189.51,17.60297152]
[1730944812894,6.5658,189.59,189.54,17.60297152]
[1730944813096,34.19777152,189.61,189.55,17.60297152]
[1730944813276,0.12549,189.59,189.56,17.60297152]
[1730944813473,0.12549,189.59,189.54,17.60297152]
[1730944813679,0.12549,189.59,189.55,17.60297152]
[1730944813898,5.44682944,189.6,189.55,17.60297152]
[1730944814073,5.44682944,189.6,189.56,17.60297152]
[1730944814272,5.44682944,189.6,189.57,17.60297152]
[1730944814674,5.44682944,189.6,189.56,17.60297152]
[1730944814878,5.44682944,189.6,189.53,17.60297152]
[1730944815077,0.91642005,189.63,189.53,17.60297152]
[1730944815078,254.4,189.66,189.59,17.60297152]
[1730944815298,6.4666,189.69,189.63,17.60297152]
[1730944815484,17.60297152,189.68,189.61,17.60297152]
[1730944815688,17.60297152,189.68,189.62,17.60297152]
[1730944816002,0.12549,189.67,189.62,17.60297152]
[1730944816204,17.72846152,189.67,189.6,17.60297152]
[1730944816501,17.60297152,189.64,189.58,17.60297152]
[1730944817187,17.60297152,189.63,189.54,15.6293]
[1730944817390,23.776884,189.62,189.56,17.60297152]
[1730944818001,23.776884,189.62,189.57,17.60297152]
[1730944818606,23.776884,189.62,189.59,17.60297152]
[1730944818777,41.37985552,189.68,189.61,17.60297152]
[1730944818977,41.37985552,189.68,189.62,17.60297152]
[1730944819177,23.776884,189.66,189.61,17.60297152]
[1730944819611,23.776884,189.67,189.62,17.60297152]
[1730944819897,34.09457152,189.7,189.55,0.1]
[1730944820078,17.60297152,189.71,189.65,17.60297152]
[1730944820282,17.60297152,189.7,189.64,17.60297152]
[1730944820693,17.60297152,189.71,189.65,17.60297152]
[1730944820895,0.12549,189.7,189.65,17.60297152]
[1730944821291,17.60297152,189.71,189.65,17.60297152]
[1730944821685,0.12549,189.7,189.65,17.60297152]
[1730944822086,17.60297152,189.7,189.64,17.60297152]
[1730944822377,0.9155527,189.72,189.66,17.60297152]
[1730944822584,0.9155527,189.72,189.68,17.60297152]
[1730944822792,0.12549,189.73,189.67,17.60297152]
[1730944822993,5.43699237,189.73,189.68,17.60297152]
[1730944823200,6.2447,189.74,189.68,17.60297152]
[1730944823402,173.8802,189.78,189.6,6.5067]
[1730944823403,23.04272653,189.77,189.7,17.60297152]
[1730944823587,23.04272653,189.77,189.71,17.60297152]
[1730944823782,17.60297152,189.76,189.69,17.60297152]
[1730944824694,23.776884,189.75,189.69,17.60297152]
[1730944826007,41.37985552,189.75,189.69,17.60297152]
[1730944826206,41.37985552,189.76,189.69,17.60297152]
[1730944826506,41.37985552,189.75,189.69,17.60297152]
[1730944827003,41.37985552,189.75,189.68,17.60297152]
[1730944827201,17.60297152,189.74,189.67,17.60297152]
[1730944827581,17.60297152,189.73,189.67,17.60297152]
[1730944827799,17.60297152,189.75,189.68,17.60297152]
[1730944828002,41.37985552,189.76,189.69,17.60297152]
[1730944828827,17.60297152,189.75,189.69,17.60297152]
[1730944829382,17.60297152,189.75,189.68,17.60297152]
[1730944829885,17.60297152,189.74,189.67,17.60297152]
[1730944830184,17.60297152,189.71,189.65,17.60297152]
[1730944830598,17.60297152,189.66,189.59,15.6568]
[1730944830793,17.60297152,189.65,189.59,17.60297152]
[1730944831009,17.60297152,189.64,189.58,17.60297152]
[1730944831321,17.60297152,189.64,189.54,15.6978]
[1730944831485,17.60297152,189.64,189.58,17.60297152]
[1730944832303,17.60297152,189.64,189.54,15.6978]
[1730944832304,41.37985552,189.63,189.56,17.60297152]
[1730944832507,17.60297152,189.62,189.56,17.60297152]
[1730944832714,41.37985552,189.63,189.56,17.60297152]
[1730944832922,0.12549,189.68,189.6,17.60297152]
[1730944833130,0.12549,189.68,189.64,17.60297152]
[1730944833304,0.12549,189.68,189.63,17.60297152]
[1730944834334,41.50534552,189.68,189.5,0.2]
[1730944834623,17.60297152,189.6,189.54,17.60297152]
[1730944834806,17.60297152,189.59,189.53,17.60297152]
[1730944835118,41.37985552,189.61,189.54,17.60297152]
[1730944835512,159.74116439,189.67,189.56,17.60297152]
[1730944835719,23.776884,189.62,189.56,17.60297152]
[1730944835914,0.12549,189.68,189.58,17.60297152]
[1730944836120,0.12549,189.68,189.62,17.60297152]
[1730944836512,17.72846152,189.68,189.61,17.60297152]
[1730944837328,17.72846152,189.68,189.61,28.07716321]
[1730944837329,23.776884,189.67,189.61,28.07716321]
[1730944837738,28.20265321,189.68,189.62,28.07716321]
[1730944838031,0.12549,189.68,189.65,28.07716321]
[1730944838431,0.12549,189.68,189.63,28.07716321]
[1730944838724,0.12549,189.68,189.62,28.07716321]
[1730944838908,0.12549,189.68,189.63,28.07716321]
[1730944838909,23.902374,189.68,189.63,28.07716321]
[1730944839111,23.902374,189.68,189.58,22.542]
[1730944839112,0.12549,189.68,189.64,28.07716321]
[1730944839323,0.12549,189.68,189.62,28.07716321]
[1730944840015,28.20265321,189.68,189.61,28.07716321]
[1730944840218,23.776884,189.67,189.61,28.07716321]
[1730944840419,23.776884,189.67,189.62,28.07716321]
[1730944840622,51.85404721,189.67,189.61,28.07716321]
[1730944840820,23.776884,189.67,189.62,28.07716321]
[1730944841827,51.97953721,189.68,189.62,28.07716321]
[1730944843108,23.902374,189.68,189.63,28.07716321]
[1730944844719,0.12549,189.68,189.63,28.07716321]
[1730944845437,0.12549,189.68,189.67,28.07716321]
[1730944855429,5.44393214,189.79,189.68,15.82839]
[1730944855751,28.07716321,189.82,189.76,28.07716321]
[1730944855921,28.07716321,189.82,189.75,28.07716321]
[1730944856249,22.5805332,189.84,189.71,28.07716321]
[1730944856250,28.07716321,189.78,189.71,28.07716321]
[1730944856442,28.07716321,189.78,189.72,28.07716321]
[1730944857337,17.52904919,189.78,189.72,17.52904919]
[1730944858138,0.5785332,189.84,189.77,17.52904919]
[1730944858321,0.5785332,189.84,189.79,15.0522]
[1730944858523,0.5785332,189.84,189.83,17.52904919]
[1730944858916,0.5785332,189.84,189.79,15.0522]
[1730944859118,0.5785332,189.84,189.83,17.52904919]
[1730944861319,0.5785332,189.84,189.83,28.00553385]
[1730944861931,0.5785332,189.84,189.82,28.00553385]
[1730944862328,0.5785332,189.84,189.83,28.00553385]
[1730944862719,5.4397315,189.94,189.85,0.1]
[1730944862919,96.1,190.06,189.84,16.6594]
[1730944862920,28.00553385,190.04,189.93,28.00553385]
[1730944863126,28.00553385,190.04,189.97,28.00553385]
[1730944863339,28.00553385,190.03,189.96,28.00553385]
[1730944864036,0.03931647,189.99,189.97,28.00553385]
[1730944864240,0.03931647,189.99,189.96,28.00553385]
[1730944864739,0.03931647,189.99,189.9,0.22549]
[1730944864740,0.03931647,189.99,189.97,28.00553385]
[1730944864924,0.03931647,189.99,189.98,28.00553385]
[1730944865242,0.03931647,189.99,189.98,28.13102385]
[1730944865433,0.03931647,189.99,189.98,28.23102385]
[1730944866040,2.105086,190.17,189.98,28.23102385]
[1730944866041,28.00553385,190.14,189.99,0.22549]
[1730944866228,6.1758,190.16,189.99,0.22549]
[1730944866229,28.00553385,190.13,190.01,28.13102385]
[1730944866419,28.00553385,190.12,190.01,28.13102385]
[1730944866621,28.00553385,190.11,190.01,28.00553385]
[1730944867839,28.00553385,190.12,190.01,28.13102385]
[1730944868053,28.00553385,190.13,190.01,28.13102385]
[1730944868339,34.12793385,190.2,190.04,0.1]
[1730944868529,0.5785332,190.21,190.16,28.00553385]
[1730944870544,0.5785332,190.21,190.17,28.00553385]
[1730944870856,0.5785332,190.21,190.16,28.00553385]
[1730944871144,0.5785332,190.21,190.07,16.443]
[1730944871145,22.68109,190.18,190.13,28.00553385]
[1730944871330,22.68109,190.18,190.0,0.1]
[1730944871331,0.12549,190.17,190.02,28.00553385]
[1730944871531,28.00553385,190.07,190.01,28.00553385]
[1730944871839,28.00553385,190.07,190.0,28.00553385]
[1730944872032,23.876884,190.17,190.02,28.00553385]
[1730944872348,28.00553385,190.09,190.02,28.00553385]
[1730944872731,28.00553385,190.07,190.01,28.00553385]
[1730944872943,28.00553385,190.05,189.98,28.00553385]
[1730944873151,28.00553385,190.07,190.01,28.00553385]
[1730944873325,23.902374,190.1,190.04,28.00553385]
[1730944873530,23.776884,190.1,190.04,28.00553385]
[1730944873742,23.776884,190.1,190.05,28.00553385]
[1730944873947,23.776884,190.13,190.09,28.00553385]
[1730944874142,22.5556,190.18,190.12,28.00553385]
[1730944874346,22.5556,190.18,190.05,0.1]
[1730944874347,6.026,190.18,190.06,0.12549]
[1730944874555,0.5785332,190.21,190.07,0.1]
[1730944874727,0.5785332,190.21,190.08,0.12549]
[1730944875425,0.5785332,190.21,190.18,28.00553385]
[1730944875625,0.5785332,190.21,190.17,28.00553385]
[1730944875826,0.5785332,190.21,190.15,28.00553385]
[1730944875827,28.58406705,190.21,190.15,28.00553385]
[1730944876022,0.12549,190.2,190.15,28.00553385]
[1730944876652,23.776884,190.19,190.14,28.00553385]
[1730944877246,23.902374,190.2,190.16,28.00553385]
[1730944877843,23.902374,190.2,190.15,28.00553385]
[1730944879027,23.902374,190.2,190.14,28.00553385]
[1730944880154,23.902374,190.2,190.08,28.00553385]
[1730944880155,23.902374,190.2,190.15,28.00553385]
[1730944880454,6.00871156,190.21,190.16,28.00553385]
[1730944880641,6.00871156,190.21,190.17,28.00553385]
[1730944881251,6.00871156,190.21,190.16,28.00553385]
[1730944881862,6.00871156,190.21,190.08,28.00553385]
[1730944881863,6.00871156,190.21,190.08,28.10553385]
[1730944882075,6.00871156,190.21,190.18,28.00553385]
[1730944882352,28.00553385,190.19,190.04,20.0]
[1730944882557,6.00871156,190.21,190.11,28.00553385]
[1730944882558,28.00553385,190.17,190.11,28.00553385]
[1730944883257,23.776884,190.17,190.12,28.00553385]
[1730944884457,23.902374,190.18,190.12,28.00553385]
[1730944884653,51.90790785,190.18,190.11,28.00553385]
[1730944884856,23.776884,190.16,190.11,28.00553385]
[1730944885035,23.776884,190.16,190.0,6.5567]
[1730944885036,51.78241785,190.14,190.07,28.00553385]
[1730944885755,23.902374,190.15,190.09,28.00553385]
[1730944885971,28.00553385,190.17,190.11,28.00553385]
[1730944886139,23.776884,190.19,190.14,28.00553385]
[1730944886460,23.776884,190.19,190.08,28.00553385]
[1730944886461,51.78241785,190.2,190.13,28.00553385]
[1730944886775,23.776884,190.18,190.13,28.00553385]
[1730944887062,23.776884,190.16,190.11,28.00553385]
[1730944887449,0.12549,190.19,190.11,28.00553385]
[1730944887450,51.90790785,190.17,190.11,28.00553385]
[1730944888052,51.90790785,190.17,190.12,28.00553385]
[1730944888053,23.902374,190.17,190.12,28.00553385]
[1730944888559,0.12549,190.17,190.13,28.00553385]
[1730944888753,0.12549,190.17,190.12,28.00553385]
[1730944889260,23.776884,190.14,190.09,28.00553385]
[1730944890052,28.00553385,190.12,190.05,28.00553385]
[1730944890263,28.00553385,190.12,190.06,28.00553385]
[1730944890565,23.776884,190.12,190.07,28.00553385]
[1730944890863,51.78241785,190.12,190.06,28.00553385]
[1730944891652,23.776884,190.12,190.07,28.00553385]
[1730944891852,5.43266575,190.15,190.1,28.00553385]
[1730944892054,23.776884,190.14,190.09,28.00553385]
[1730944893059,20.0,190.13,190.09,28.00553385]
[1730944893448,20.0,190.13,190.1,28.00553385]
[1730944894171,20.0,190.13,190.09,28.00553385]
[1730944895554,20.0,190.13,190.1,28.00553385]
[1730944895746,20.0,190.13,190.08,28.00553385]
[1730944895940,51.78241785,190.14,190.05,28.00553385]
[1730944895941,48.00553385,190.11,190.05,28.00553385]
[1730944896164,51.90790785,190.1,190.04,28.00553385]
[1730944896381,22.803,190.13,190.07,28.00553385]
[1730944896382,20.0,190.09,190.07,28.00553385]
[1730944896871,20.0,190.12,190.07,28.00553385]
[1730944897051,20.0,190.12,190.08,28.00553385]
[1730944897246,20.0,190.12,190.0,0.12549]
[1730944897247,20.0,190.12,190.09,28.00553385]
[1730944897447,20.0,190.12,190.08,28.00553385]
[1730944897650,20.0,190.12,190.07,28.00553385]
[1730944898167,20.0,190.12,190.08,28.00553385]
[1730944898355,20.0,190.13,190.09,28.00553385]
[1730944898555,20.0,190.14,190.09,28.00553385]
[1730944899066,48.00553385,190.14,190.08,28.00553385]
[1730944899266,20.0,190.1,190.05,28.00553385]
[1730944899479,20.0,190.1,190.04,28.00553385]
[1730944899950,48.00553385,190.05,189.99,28.00553385]
[1730944900573,20.0,190.03,189.98,28.00553385]
[1730944900750,20.0,190.03,189.97,28.00553385]
[1730944900955,48.00553385,190.0,189.93,28.00553385]
[1730944901252,48.00553385,189.99,189.93,28.00553385]
[1730944902162,0.1,190.05,189.91,28.00553385]
[1730944902163,48.00553385,189.97,189.91,28.00553385]
[1730944902550,20.0,189.95,189.9,28.00553385]
[1730944902749,20.0,189.95,189.89,28.00553385]
[1730944902962,48.00553385,189.95,189.88,28.00553385]
[1730944903162,20.0,189.93,189.88,28.00553385]
[1730944903752,48.00553385,189.93,189.87,28.00553385]
[1730944904280,20.0,189.95,189.9,28.00553385]
[1730944904448,23.776884,189.95,189.9,28.00553385]
[1730944904651,20.0,189.94,189.9,28.00553385]
[1730944904961,20.0,189.94,189.81,22.8352]
[1730944904962,20.0,189.94,189.89,28.00553385]
[1730944905165,20.0,189.94,189.88,28.00553385]
[1730944905349,21.7208,189.99,189.91,28.00553385]
[1730944905350,20.0,189.96,189.91,28.00553385]
[1730944905853,20.0,189.97,189.91,28.00553385]
[1730944907673,20.0,189.97,189.92,28.00553385]
[1730944908469,20.0,189.98,189.92,28.00553385]
[1730944908673,28.00553385,189.95,189.83,0.1]
[1730944908879,28.00553385,189.93,189.86,28.00553385]
[1730944909049,23.776884,189.97,189.81,22.6352]
[1730944909050,20.0,189.9,189.84,28.00553385]
[1730944909250,48.00553385,189.9,189.84,28.00553385]
[1730944910089,20.0,189.91,189.86,28.00553385]
[1730944910292,20.0,189.89,189.84,28.00553385]
[1730944910467,20.0,189.89,189.83,28.00553385]
[1730944911887,20.0,189.91,189.85,28.00553385]
[1730944912756,49.72633385,189.99,189.9,28.00553385]
[1730944913063,21.7208,189.99,189.94,28.00553385]
[1730944913769,21.7208,189.99,189.86,28.00553385]
[1730944913770,49.72633385,189.99,189.93,28.00553385]
[1730944914557,28.00553385,189.98,189.92,28.00553385]
[1730944914772,28.00553385,189.98,189.91,28.00553385]
[1730944914970,28.13102385,189.97,189.91,28.00553385]
[1730944915155,23.776884,189.96,189.91,28.00553385]
[1730944915853,0.12549,189.95,189.9,28.00553385]
[1730944916772,0.12549,189.95,189.91,28.00553385]
[1730944917465,23.776884,189.96,189.91,28.00553385]
[1730944917672,25.31782415,190.04,189.95,28.00553385]
[1730944917860,28.00553385,190.06,190.0,28.00553385]
[1730944918060,28.00553385,190.07,190.01,28.00553385]
[1730944918381,28.00553385,190.06,190.0,28.00553385]
[1730944919184,51.09523385,190.09,190.03,28.00553385]
[1730944919977,28.13102385,190.05,189.99,28.00553385]
[1730944920160,23.0897,190.09,190.02,28.00553385]
[1730944920365,28.00553385,190.06,190.0,28.00553385]
[1730944920569,0.12549,190.06,190.0,28.00553385]
[1730944920769,0.12549,190.06,190.01,28.00553385]
[1730944921270,23.776884,190.06,190.01,28.00553385]
[1730944921474,0.12549,190.05,190.01,28.00553385]
[1730944921669,28.13102385,190.05,189.99,28.00553385]
[1730944921878,23.902374,190.03,189.97,28.00553385]
[1730944922078,23.776884,190.02,189.97,28.00553385]
[1730944922371,23.776884,190.06,189.9,15.2144]
[1730944922372,23.902374,189.99,189.94,28.00553385]
[1730944922577,51.90790785,189.99,189.93,28.00553385]